lending/lending_fUSD_20250317
["ID","MTS","AMOUNT","RATE_DAILY","PERIOD"]
[356268450,1742172638351,-302.55466002,0.000348,31]
[356268455,1742172640099,-83.60258622,0.000348,31]
[356268456,1742172640110,-411.98,0.000348,31]
[356268457,1742172640120,-411.98,0.000348,31]
[356268458,1742172640131,-411.98,0.000348,31]
[356268459,1742172640142,-411.98,0.000348,31]
[356268460,1742172640153,-411.98,0.000348,31]
[356268461,1742172640164,-411.98,0.000348,31]
[356268462,1742172640175,-411.98,0.000348,31]
[356268463,1742172640186,-208.04141673,0.000348,31]
[356268464,1742172640208,-203.93858327,0.000348,31]
[356268465,1742172640219,-411.98,0.000348,31]
[356268466,1742172640230,-1089.0,0.00035125,2]
[356268467,1742172640240,-198.33853782,0.00035649,2]
[356268468,1742172640252,-319.66146218,0.00035649,2]
[356268469,1742172640263,-251.67496,0.00035888,30]
[356268470,1742172640275,-1020.01294584,0.00035999,30]
[356268471,1742172640286,-307.04063198,0.00036,120]
[356268472,1742172640718,-420.225,0.00036,120]
[356268473,1742172640730,-523.698185,0.00036,120]
[356268474,1742172640742,-574.80859744,0.00036,120]
[356268475,1742172640753,-6951.62015765,0.00036,120]
[356268476,1742172640794,-397.17359317,0.00036,120]
[356268477,1742172640805,-637.59624057,0.00036,120]
[356268478,1742172640818,-347.58658425,0.00036,120]
[356268479,1742172640830,-381.45999998,0.00036,120]
[356268481,1742172640841,-431.97,0.00036,120]
[356268485,1742172641055,-6243.072282,0.00036,120]
[356268486,1742172641067,-2837.11118111,0.00036,120]
[356268487,1742172641077,-251.67496,0.00036088,30]
[356268488,1742172641086,-251.67496,0.00036288,30]
[356268489,1742172641095,-164.44,0.00036461,120]
[356268490,1742172641105,-251.67496,0.00036488,30]
[356268491,1742172641114,-152.0,0.00036588,3]
[356268492,1742172641124,-153.41990057,0.00036588,5]
[356268493,1742172641134,-164.28489184,0.00036638,2]
[356268494,1742172641143,-251.67496,0.00036688,30]
[356268495,1742172641153,-251.67496,0.00036888,30]
[356268496,1742172641163,-251.67496,0.00037088,30]
[356268497,1742172641172,-251.67496,0.00037288,30]
[356268498,1742172641183,-1000.0,0.00037438,2]
[356268499,1742172641193,-251.67496,0.00037488,30]
[356268500,1742172641202,-151.0,0.00037561,2]
[356268501,1742172641213,-251.67496,0.00037688,30]
[356268502,1742172641223,-251.67496,0.00037888,30]
[356268503,1742172641232,-518.0,0.00037913,2]
[356268504,1742172641242,-152.06,0.0003799,2]
[356268505,1742172641251,-2021.793848,0.00037997,120]
[356268506,1742172641262,-513.598747,0.00037997,120]
[356268507,1742172641272,-1020.01294584,0.00037999,30]
[356268508,1742172641282,-10000.00044686,0.00038,60]
[356268509,1742172641299,-500.0,0.00038044,4]
[356268510,1742172641309,-500.0,0.00038044,4]
[356268511,1742172641318,-500.0,0.00038071,4]
[356268512,1742172641328,-253.0798094,0.00038071,4]
[356268513,1742172641340,-466.9321906,0.00038071,4]
[356268514,1742172641350,-251.67496,0.00038088,30]
[356268515,1742172641359,-513.16534408,0.00038099,4]
[356268516,1742172641370,-251.67496,0.00038288,30]
[356268517,1742172641379,-1268.0,0.0003829,5]
[356268518,1742172641390,-411.98,0.000383,31]
[356268519,1742172641400,-411.98,0.000383,31]
[356268520,1742172641409,-411.98,0.000383,31]
[356268521,1742172641419,-411.98,0.000383,31]
[356268522,1742172641429,-411.98,0.000383,31]
[356268523,1742172641438,-411.98,0.000383,31]
[356268524,1742172641449,-411.98,0.000383,31]
[356268525,1742172641459,-411.98,0.000383,31]
[356268526,1742172641468,-411.98,0.000383,31]
[356268527,1742172641478,-411.98,0.000383,31]
[356268528,1742172641488,-411.98,0.000383,31]
[356268529,1742172641498,-411.98,0.000383,31]
[356268530,1742172641507,-411.98,0.000383,31]
[356268531,1742172641516,-411.98,0.000383,31]
[356268532,1742172641526,-411.98,0.000383,31]
[356268533,1742172641533,-411.98,0.000383,31]
[356268534,1742172641541,-411.98,0.000383,31]
[356268535,1742172641550,-411.98,0.000383,31]
[356268536,1742172641560,-411.98,0.000383,31]
[356268537,1742172641570,-411.98,0.000383,31]
[356268538,1742172641579,-411.98,0.000383,31]
[356268539,1742172641589,-411.98,0.000383,31]
[356268540,1742172641597,-411.98,0.000383,31]
[356268541,1742172641607,-411.98,0.000383,31]
[356268542,1742172641617,-1020.01294584,0.00038355,30]
[356268543,1742172641626,-524.9085646,0.00038356,15]
[356268544,1742172641635,-524.9085646,0.00038356,15]
[356268545,1742172641645,-524.9085646,0.00038356,15]
[356268546,1742172641656,-524.9085646,0.00038356,15]
[356268547,1742172641665,-524.9085646,0.00038356,15]
[356268548,1742172641675,-524.9085646,0.00038356,15]
[356268549,1742172641684,-524.9085646,0.00038356,15]
[356268550,1742172641693,-524.9085646,0.00038356,15]
[356268551,1742172641703,-524.9085646,0.00038356,15]
[356268552,1742172641712,-524.9085646,0.00038356,15]
[356268553,1742172641721,-524.9085646,0.00038356,15]
[356268554,1742172641731,-524.9085646,0.00038356,15]
[356268555,1742172641740,-524.9085646,0.00038356,15]
[356268556,1742172641749,-524.9085646,0.00038356,15]
[356268557,1742172641759,-558.31183688,0.00038356,15]
[356268558,1742172641768,-558.31183688,0.00038356,15]
[356268559,1742172641778,-558.31183688,0.00038356,15]
[356268560,1742172641787,-558.31183688,0.00038356,15]
[356268561,1742172641796,-558.31183688,0.00038356,15]
[356268562,1742172641805,-558.31183688,0.00038356,15]
[356268563,1742172641815,-558.31183688,0.00038356,15]
[356268564,1742172641824,-558.31183688,0.00038356,15]
[356268565,1742172641833,-525.74364639,0.00038356,15]
[356268566,1742172641842,-525.74364639,0.00038356,15]
[356268567,1742172641851,-525.74364639,0.00038356,15]
[356268568,1742172641861,-153.0,0.0003839,2]
[356268569,1742172641870,-153.0,0.00038391,2]
[356268570,1742172641880,-153.0,0.00038407,2]
[356268571,1742172641890,-153.0,0.00038425,2]
[356268572,1742172641899,-153.0,0.00038443,2]
[356268573,1742172641908,-251.67496,0.00038488,30]
[356268574,1742172641917,-251.67496,0.00038688,30]
[356268575,1742172641927,-251.67496,0.00039088,30]
[356268576,1742172641936,-251.67496,0.00039288,30]
[356268577,1742172641947,-207.37964805,0.000394,8]
[356268578,1742172641958,-251.67496,0.00039488,30]
[356268579,1742172641967,-300.0,0.00039534,2]
[356268580,1742172641977,-437.78,0.00039534,2]
[356268581,1742172641987,-251.67496,0.00039688,30]
[356268582,1742172641996,-251.67496,0.00039888,30]
[356268583,1742172642005,-5000.0,0.000399,3]
[356268584,1742172642015,-1020.01294584,0.00039999,30]
[356268585,1742172642025,-1020.01294584,0.00039999,30]
[356268586,1742172642035,-1020.01294584,0.00039999,30]
[356268587,1742172642044,-1020.01294584,0.00039999,30]
[356268588,1742172642054,-1020.01294584,0.00039999,30]
[356268589,1742172642063,-1020.01294584,0.00039999,30]
[356268590,1742172642073,-1020.01294584,0.00039999,30]
[356268591,1742172642082,-1020.01294584,0.00039999,30]
[356268592,1742172642091,-1020.01294579,0.00039999,30]
[356268593,1742172642100,-400.0,0.0004,120]
[356268594,1742172642110,-25609.27098316,0.0004,60]
[356268595,1742172642123,-684.66897175,0.0004,60]
[356268596,1742172642134,-1067.1,0.0004,60]
[356268603,1742172643056,-653.75838295,0.00024939,2]
[356268604,1742172643067,-2638.96004509,0.0004,60]
[356268605,1742172643076,-12601.115581,0.0004,60]
[356268606,1742172643110,-1050.5625,0.0004,60]
[356268607,1742172643120,-383.20020393,0.0004,60]
[356268608,1742172643133,-5503.12715141,0.0004,60]
[356268609,1742172643187,-1153.76261915,0.0004,60]
[356268610,1742172643283,-252.87196491,0.0004,60]
[356268613,1742172644756,-9055.3599796,0.0004,60]
[356268614,1742172644766,-24004.24096859,0.0004,60]
[356268615,1742172644778,-2248.33419155,0.0004,60]
[356268616,1742172644875,-2955.77079881,0.0004,60]
[356268620,1742172646014,-692.17038355,0.0004,60]
[356268625,1742172646067,-99.4836575,0.0004,60]
[356268626,1742172646077,-30000.0,0.0004,60]
[356268627,1742172646086,-12216.5163425,0.0004,60]
[356268628,1742172646097,-1024.15,0.0004,60]
[356268629,1742172646110,-569.97956681,0.0004,60]
[356268630,1742172646123,-269.24704914,0.0004,60]
[356268631,1742172646135,-1208.0,0.0004,60]
[356268632,1742172646147,-14712.10704155,0.0004,60]
[356268633,1742172646156,-30000.0,0.0004,60]
[356268634,1742172646166,-852.71712041,0.0004,60]
[356268635,1742172646178,-421.5799658,0.0004,60]
[356268636,1742172646190,-8316.5,0.0004,60]
[356268637,1742172646230,-2866.08229076,0.0004,60]
[356268638,1742172646243,-4499.6859471,0.0004,60]
[356268639,1742172646254,-1389.16542608,0.0004,60]
[356268640,1742172646285,-456.10419312,0.0004,60]
[356268660,1742173266255,-232.0,0.000222,2]
[356268661,1742173266277,-150.0,0.00023799,2]
[356268662,1742173266300,-150.0,0.0002442,2]
[356268663,1742173266324,-150.0,0.0002442,2]
[356268664,1742173266346,-272.214,0.00025561,2]
[356268665,1742173266369,-326.87919147,0.00026366,2]
[356268666,1742173266391,-250.0,0.00026466,2]
[356268667,1742173266413,-281.404,0.00026466,2]
[356268668,1742173266435,-245.67,0.00026466,2]
[356268669,1742173266459,-1232.044,0.00026466,2]
[356268670,1742173266481,-151.0,0.00026466,2]
[356268671,1742173266503,-3934.0,0.00026466,2]
[356268672,1742173266525,-151.0,0.00026466,2]
[356268673,1742173266546,-2033.0,0.00026466,2]
[356268674,1742173266568,-1418.0,0.00026466,2]
[356268675,1742173266590,-571.0,0.00026466,2]
[356268676,1742173266616,-326.87919147,0.00028411,2]
[356268677,1742173266639,-188.95,0.00028511,120]
[356268678,1742173266660,-3811.84,0.00028511,2]
[356268679,1742173266682,-1000.0,0.00028511,2]
[356268680,1742173266706,-1000.0,0.00030377,2]
[356268681,1742173266729,-207.37964805,0.000309,5]
[356268682,1742173266751,-9916.73996901,0.000309,10]
[356268690,1742173832315,-250.0,0.00019,2]
[356268691,1742173832325,-28.77585784,0.00026467,2]
[356268692,1742173832428,-612.22414216,0.00026467,2]
[356268693,1742173832440,-291.0809848,0.00026467,2]
[356268694,1742173832452,-494.9190152,0.00026467,2]
[356268695,1742173832464,-301.77585784,0.00026467,2]
[356268696,1742173832476,-1928.8,0.00026467,2]
[356268697,1742173832487,-500.0,0.00026467,2]
[356268889,1742173838287,-97.62114216,0.00026467,2]
[356268890,1742173838298,-250.0,0.000266,2]
[356268891,1742173838308,-150.0,0.00028684,2]
[356268892,1742173838317,-207.37964805,0.000289,5]
[356268893,1742173838327,-150.0,0.00029114,2]
[356268894,1742173838346,-150.0,0.0003,2]
[356268895,1742173838360,-2402.644177,0.00030645,2]
[356268896,1742173838369,-14962.7673,0.000308,2]
[356268897,1742173838378,-1000.0,0.00032075,2]
[356268898,1742173838388,-750.0,0.000323,2]
[356268899,1742173838397,-3674.46,0.000323,10]
[356268900,1742173838406,-232.0,0.000331,2]
[356268902,1742173838416,-368.0,0.000333,2]
[356268904,1742173838428,-500.0,0.0003411,31]
[356268906,1742173838439,-401.51,0.00035224,2]
[356268908,1742173838448,-188.95,0.00035639,120]
[356268910,1742173838458,-1000.0,0.00035639,2]
[356268912,1742173838467,-150.0,0.00035699,2]
[356268914,1742173838476,-263.74,0.000357,31]
[356268916,1742173838488,-263.74,0.000357,31]
[356268918,1742173838500,-263.74,0.000357,31]
[356268920,1742173838509,-263.74,0.000357,31]
[356268922,1742173838520,-263.74,0.000357,31]
[356268924,1742173838529,-263.74,0.000357,31]
[356268926,1742173838538,-263.74,0.000357,31]
[356268928,1742173838548,-263.74,0.000357,31]
[356268930,1742173838557,-78.25057876,0.000357,31]
[356269126,1742173840430,-185.48942124,0.000357,31]
[356269128,1742173840439,-263.74,0.000357,31]
[356269130,1742173840449,-263.74,0.000357,31]
[356269132,1742173840459,-263.74,0.000357,31]
[356269134,1742173840469,-150.0,0.00035995,7]
[356269136,1742173840479,-167.329,0.0003611,44]
[356269138,1742173840488,-648.50939679,0.0003611,44]
[356269140,1742173840500,-819.6813465,0.0003611,44]
[356269142,1742173840513,-309.43925671,0.0003611,44]
[356269144,1742173840523,-309.78,0.00036327,2]
[356269146,1742173840532,-1634.81075929,0.00036351,2]
[356269148,1742173840543,-797.6518777,0.00036351,2]
[356269152,1742173840567,-715.45736301,0.00036351,2]
[356269154,1742173840576,-500.0,0.00036411,31]
[356269156,1742173840587,-200.0,0.00036494,2]
[356269158,1742173840597,-546.59,0.00036501,2]
[356269160,1742173840607,-1852.42,0.00036695,2]
[356269162,1742173840617,-2000.0,0.00036731,120]
[356269164,1742173840627,-3628.12,0.00037079,2]
[356269166,1742173840636,-6906.83,0.00037142,2]
[356269168,1742173840645,-1725.72,0.00037227,2]
[356269170,1742173840656,-500.0,0.00037411,31]
[356269172,1742173840666,-401.51,0.00037488,2]
[356269174,1742173840676,-411.0,0.000377,7]
[356269176,1742173840686,-153.0,0.00038009,2]
[356269178,1742173840695,-500.0,0.00038197,2]
[356269180,1742173840705,-2000.0,0.00038294,120]
[356269182,1742173840715,-250.0,0.00038418,2]
[356269184,1742173840725,-263.74,0.000389,31]
[356269186,1742173840735,-263.74,0.000389,31]
[356269188,1742173840744,-263.74,0.000389,31]
[356269190,1742173840754,-263.74,0.000389,31]
[356269192,1742173840763,-263.74,0.000389,31]
[356269194,1742173840773,-263.74,0.000389,31]
[356269196,1742173840783,-263.74,0.000389,31]
[356269198,1742173840793,-263.74,0.000389,31]
[356269200,1742173840803,-263.74,0.000389,31]
[356269202,1742173840812,-263.74,0.000389,31]
[356269205,1742173840822,-263.74,0.000389,31]
[356269207,1742173840832,-263.74,0.000389,31]
[356269209,1742173840841,-263.74,0.000389,31]
[356269211,1742173840850,-263.74,0.000389,31]
[356269213,1742173840860,-263.74,0.000389,31]
[356269214,1742173840869,-263.74,0.000389,31]
[356269216,1742173840880,-263.74,0.000389,31]
[356269219,1742173840892,-263.74,0.000389,31]
[356269221,1742173840903,-263.74,0.000389,31]
[356269223,1742173840913,-263.74,0.000389,31]
[356269225,1742173840922,-263.74,0.000389,31]
[356269227,1742173840932,-263.74,0.000389,31]
[356269229,1742173840943,-263.74,0.000389,31]
[356269230,1742173840954,-263.74,0.000389,31]
[356269232,1742173840963,-1352.57932009,0.00039148,31]
[356269234,1742173840973,-1140.15253044,0.000392,5]
[356269236,1742173840982,-1070.88332572,0.000392,5]
[356269239,1742173840992,-1077.9596506,0.000392,5]
[356269241,1742173841002,-1000.0,0.00039203,2]
[356269242,1742173841012,-500.0,0.00039342,2]
[356269244,1742173841022,-1000.0,0.00039534,2]
[356269247,1742173841032,-401.51,0.00039752,2]
[356269248,1742173841041,-371.1588,0.000399,2]
[356269250,1742173841051,-1000.0,0.000399,2]
[356269252,1742173841060,-2678.522,0.000399,2]
[356269254,1742173841070,-1000.0,0.000399,2]
[356269256,1742173841079,-423.15840928,0.00039999,31]
[356269258,1742173841089,-11198.16505673,0.0004,60]
[356269260,1742173841098,-30000.0,0.0004,60]
[356269263,1742173841108,-30000.0,0.0004,60]
[356269265,1742173841117,-30000.0,0.0004,60]
[356269266,1742173841126,-37310.51825728,0.0004,60]
[356269267,1742173841136,-200.0,0.0004,120]
[356269268,1742173841146,-226.0,0.0004,100]
[356269269,1742173841156,-288.616,0.0004,2]
[356269270,1742173841165,-217.9179231,0.00040007,2]
[356269271,1742173841175,-2075.4462158,0.00040007,2]
[356269272,1742173841187,-10191.1858631,0.00040007,2]
[356269273,1742173841197,-260.27140857,0.00040007,2]
[356269274,1742173841207,-251.67496,0.00040088,30]
[356269275,1742173841216,-150.46,0.00040219,2]
[356269276,1742173841226,-251.67496,0.00040288,30]
[356269277,1742173841235,-251.67496,0.00040488,30]
[356269278,1742173841245,-151.29,0.00040616,2]
[356269279,1742173841254,-251.67496,0.00040688,30]
[356269280,1742173841263,-251.67496,0.00040888,30]
[356269281,1742173841272,-17600.0919,0.00040994,2]
[356269282,1742173841282,-5000.0,0.00040995,3]
[356269283,1742173841291,-154.35333679,0.00040995,2]
[356269284,1742173841301,-724.80334948,0.00040995,13]
[356269285,1742173841310,-190.89850091,0.00040995,2]
[356269286,1742173841320,-17580.0,0.00041,120]
[356269287,1742173841329,-164.44,0.00041019,120]
[356269289,1742173841339,-217.9179231,0.00041067,2]
[356269291,1742173841348,-1696.4516894,0.00041067,2]
[356269293,1742173841358,-8330.1867055,0.00041067,2]
[356269295,1742173841367,-160.30628082,0.00041073,5]
[356269297,1742173841377,-208.74202512,0.00041073,5]
[356269299,1742173841386,-151.38631818,0.00041073,5]
[356269301,1742173841394,-152.06,0.00041084,2]
[356269303,1742173841404,-251.67496,0.00041088,30]
[356269305,1742173841412,-500.0,0.00041093,31]
[356269307,1742173841422,-500.0,0.00041093,31]
[356269309,1742173841434,-500.0,0.00041093,31]
[356269311,1742173841443,-500.0,0.00041093,31]
[356269313,1742173841453,-500.0,0.00041093,31]
[356269315,1742173841463,-500.0,0.00041093,31]
[356269317,1742173841472,-500.0,0.00041093,31]
[356269319,1742173841483,-229.52327631,0.00041093,31]
[356269321,1742173841494,-500.0,0.00041093,31]
[356269323,1742173841503,-500.0,0.00041093,31]
[356269325,1742173841513,-500.0,0.00041093,31]
[356269327,1742173841522,-500.0,0.00041093,31]
[356269329,1742173841531,-500.0,0.00041093,31]
[356269331,1742173841541,-500.0,0.00041093,31]
[356269333,1742173841550,-500.0,0.00041093,31]
[356269335,1742173841559,-500.0,0.00041093,31]
[356269337,1742173841568,-500.0,0.00041093,31]
[356269339,1742173841577,-500.0,0.00041093,31]
[356269341,1742173841587,-500.0,0.00041093,31]
[356269343,1742173841596,-500.0,0.00041093,31]
[356269345,1742173841605,-550.0,0.00041093,31]
[356269347,1742173841614,-500.0,0.00041093,31]
[356269349,1742173841623,-696072.87273532,0.00041094,18]
[356269351,1742173841632,-741.93889059,0.00041094,18]
[356269353,1742173841642,-500.0,0.00041094,7]
[356269355,1742173841652,-466.87952795,0.00041094,31]
[356269357,1742173841661,-393.40284592,0.00041094,31]
[356269359,1742173841671,-423.97700083,0.00041094,31]
[356269361,1742173841680,-500.0,0.00041094,31]
[356269363,1742173841691,-500.0,0.00041094,31]
[356269365,1742173841700,-500.0,0.00041094,31]
[356269367,1742173841709,-500.0,0.00041094,31]
[356269369,1742173841719,-500.0,0.00041094,31]
[356269371,1742173841728,-500.0,0.00041094,31]
[356269372,1742173841737,-500.0,0.00041094,31]
[356269374,1742173841747,-500.0,0.00041094,31]
[356269377,1742173841758,-500.0,0.00041094,31]
[356269378,1742173841767,-500.0,0.00041094,31]
[356269380,1742173841777,-500.0,0.00041094,31]
[356269383,1742173841790,-500.0,0.00041094,31]
[356269385,1742173841799,-500.0,0.00041094,31]
[356269387,1742173841809,-500.0,0.00041094,31]
[356269389,1742173841818,-500.0,0.00041094,31]
[356269391,1742173841827,-500.0,0.00041094,31]
[356269393,1742173841837,-500.0,0.00041094,31]
[356269394,1742173841846,-500.0,0.00041094,31]
[356269396,1742173841857,-500.0,0.00041094,31]
[356269399,1742173841867,-500.0,0.00041094,31]
[356269401,1742173841879,-500.0,0.00041094,31]
[356269403,1742173841888,-500.0,0.00041094,31]
[356269405,1742173841898,-500.0,0.00041094,31]
[356269407,1742173841907,-500.0,0.00041094,31]
[356269409,1742173841916,-500.0,0.00041094,31]
[356269411,1742173841925,-500.0,0.00041094,31]
[356269413,1742173841934,-500.0,0.00041094,31]
[356269415,1742173841945,-500.0,0.00041094,31]
[356269417,1742173841955,-500.0,0.00041094,31]
[356269418,1742173841964,-500.0,0.00041094,31]
[356269420,1742173841974,-500.0,0.00041094,31]
[356269422,1742173841983,-500.0,0.00041094,31]
[356269424,1742173841993,-500.0,0.00041094,31]
[356269426,1742173842002,-500.0,0.00041094,31]
[356269428,1742173842011,-500.0,0.00041094,31]
[356269430,1742173842020,-368.88764472,0.00041094,31]
[356269432,1742173842029,-500.0,0.00041094,31]
[356269434,1742173842039,-500.0,0.00041094,31]
[356269448,1742173842162,-500.0,0.00041094,31]
[356269450,1742173842172,-500.0,0.00041094,31]
[356269452,1742173842182,-500.0,0.00041094,31]
[356269454,1742173842191,-500.0,0.00041094,31]
[356269456,1742173842201,-500.0,0.00041094,31]
[356269458,1742173842210,-500.0,0.00041094,31]
[356269460,1742173842219,-500.0,0.00041094,31]
[356269462,1742173842228,-500.0,0.00041094,31]
[356269464,1742173842237,-500.0,0.00041094,31]
[356269466,1742173842247,-500.0,0.00041094,31]
[356269468,1742173842256,-500.0,0.00041094,31]
[356269470,1742173842266,-500.0,0.00041094,31]
[356269472,1742173842275,-500.0,0.00041094,31]
[356269474,1742173842284,-500.0,0.00041094,31]
[356269476,1742173842294,-500.0,0.00041094,31]
[356269478,1742173842304,-500.0,0.00041094,31]
[356269480,1742173842314,-500.0,0.00041094,31]
[356269482,1742173842323,-500.0,0.00041094,31]
[356269484,1742173842333,-450.0,0.00041094,31]
[356269486,1742173842343,-1134.0,0.00041095,5]
[356269488,1742173842352,-500.0,0.00041095,31]
[356269490,1742173842361,-193.476989,0.00041095,14]
[356269492,1742173842371,-193.476989,0.00041095,14]
[356269494,1742173842380,-193.476989,0.00041095,14]
[356269496,1742173842389,-193.476989,0.00041095,14]
[356269498,1742173842399,-193.476989,0.00041095,14]
[356269500,1742173842408,-193.476989,0.00041095,14]
[356269502,1742173842417,-193.476989,0.00041095,14]
[356269504,1742173842426,-193.476989,0.00041095,14]
[356269506,1742173842438,-193.476989,0.00041095,14]
[356269508,1742173842448,-193.476989,0.00041095,14]
[356269510,1742173842457,-193.476989,0.00041095,14]
[356269511,1742173842466,-193.476989,0.00041095,14]
[356269513,1742173842475,-193.476989,0.00041095,14]
[356269515,1742173842484,-193.476989,0.00041095,14]
[356269517,1742173842495,-193.476989,0.00041095,14]
[356269519,1742173842504,-193.476989,0.00041095,14]
[356269521,1742173842513,-193.476989,0.00041095,14]
[356269523,1742173842522,-193.476989,0.00041095,14]
[356269525,1742173842531,-193.476989,0.00041095,14]
[356269527,1742173842540,-193.476985,0.00041095,14]
[356269529,1742173842550,-500.0,0.00041095,3]
[356269531,1742173842559,-500.0,0.00041095,3]
[356269533,1742173842568,-500.0,0.00041095,3]
[356269535,1742173842579,-500.0,0.00041095,31]
[356269537,1742173842588,-500.0,0.00041095,31]
[356269539,1742173842598,-500.0,0.00041095,31]
[356269541,1742173842608,-504.48361487,0.00041095,31]
[356269543,1742173842617,-1279.17,0.00041095,31]
[356269545,1742173842627,-1279.17,0.00041095,31]
[356269547,1742173842636,-1279.17,0.00041095,31]
[356269549,1742173842645,-1279.17,0.00041095,31]
[356269551,1742173842654,-1279.17,0.00041095,31]
[356269553,1742173842663,-1279.17,0.00041095,31]
[356269555,1742173842673,-1279.17,0.00041095,31]
[356269557,1742173842682,-1279.17,0.00041095,31]
[356269559,1742173842692,-1279.17,0.00041095,31]
[356269561,1742173842701,-1279.17,0.00041095,31]
[356269563,1742173842712,-1279.17,0.00041095,31]
[356269565,1742173842722,-1279.17,0.00041095,31]
[356269567,1742173842731,-1279.17,0.00041095,31]
[356269569,1742173842740,-1279.17,0.00041095,31]
[356269571,1742173842749,-1279.17,0.00041095,31]
[356269573,1742173842759,-1279.17,0.00041095,31]
[356269575,1742173842768,-1279.17,0.00041095,31]
[356269577,1742173842777,-1279.17,0.00041095,31]
[356269579,1742173842787,-1279.17,0.00041095,31]
[356269581,1742173842796,-1279.17,0.00041095,31]
[356269583,1742173842805,-1279.17,0.00041095,31]
[356269585,1742173842814,-1279.17,0.00041095,31]
[356269587,1742173842824,-1279.17,0.00041095,31]
[356269589,1742173842833,-1279.31,0.00041095,31]
[356269591,1742173842843,-519.11,0.00041095,31]
[356269593,1742173842853,-519.11,0.00041095,31]
[356269595,1742173842864,-519.11,0.00041095,31]
[356269597,1742173842874,-519.11,0.00041095,31]
[356269599,1742173842884,-519.11,0.00041095,31]
[356269601,1742173842894,-519.11,0.00041095,31]
[356269603,1742173842903,-519.11,0.00041095,31]
[356269605,1742173842913,-519.11,0.00041095,31]
[356269607,1742173842922,-519.11,0.00041095,31]
[356269609,1742173842932,-519.11,0.00041095,31]
[356269611,1742173842942,-519.11,0.00041095,31]
[356269613,1742173842951,-519.11,0.00041095,31]
[356269615,1742173842961,-519.11,0.00041095,31]
[356269617,1742173842970,-519.11,0.00041095,31]
[356269619,1742173842979,-519.11,0.00041095,31]
[356269621,1742173842988,-726.13,0.00041095,31]
[356269623,1742173842997,-519.11,0.00041095,31]
[356269625,1742173843006,-726.13,0.00041095,31]
[356269627,1742173843014,-519.11,0.00041095,31]
[356269629,1742173843022,-726.13,0.00041095,31]
[356269631,1742173843031,-519.11,0.00041095,31]
[356269633,1742173843039,-726.13,0.00041095,31]
[356269635,1742173843047,-519.11,0.00041095,31]
[356269639,1742173843058,-726.13,0.00041095,31]
[356269643,1742173843067,-408.881298,0.00041095,31]
[356269645,1742173843075,-519.11,0.00041095,31]
[356269647,1742173843084,-726.13,0.00041095,31]
[356269649,1742173843093,-519.11,0.00041095,31]
[356269651,1742173843102,-408.881298,0.00041095,31]
[356269653,1742173843111,-726.13,0.00041095,31]
[356269655,1742173843120,-519.11,0.00041095,31]
[356269657,1742173843128,-726.13,0.00041095,31]
[356269659,1742173843138,-519.11,0.00041095,31]
[356269662,1742173843147,-408.881298,0.00041095,31]
[356269665,1742173843155,-726.13,0.00041095,31]
[356269668,1742173843164,-519.15,0.00041095,31]
[356269670,1742173843172,-408.881298,0.00041095,31]